[Event "Titled Tuesday Blitz June 15 2021"]
[White "Kislov, Oleg"]
[Black "Liyanage, Ranindu Dilshan"]
[WhiteFideId "13503774"]
[BlackFideId "9915834"]
[WhiteElo "2252"]
[BlackElo "1839"]
[Result "1-0"]
[Round "02"]
[TimeControl "180+1"]
[Date "2021.06.15"]
[WhiteClock "0:00:32"]
[BlackClock "0:00:18"]

1. e4 {[%clk 0:03:00]}  c5 {[%clk 0:02:59]} 2. Nf3 {[%clk 0:03:00]}  d6 {[%clk 0:02:59]} 3. c3 {[%clk 0:02:59]}  Nf6 {[%clk 0:02:59]} 4. Be2 {[%clk 0:02:59]}  g6 {[%clk 0:02:54]} 5. O-O {[%clk 0:02:57]}  Bg7 {[%clk 0:02:54]} 6. Re1 {[%clk 0:02:56]}  O-O {[%clk 0:02:54]} 7. Bf1 {[%clk 0:02:54]}  Nc6 {[%clk 0:02:53]} 8. h3 {[%clk 0:02:53]}  Rb8 {[%clk 0:02:37]} 9. d4 {[%clk 0:02:52]}  cxd4 {[%clk 0:02:37]} 10. cxd4 {[%clk 0:02:52]}  d5 {[%clk 0:02:37]} 11. e5 {[%clk 0:02:50]}  Ne4 {[%clk 0:02:37]} 12. Nc3 {[%clk 0:02:49]}  Nxc3 {[%clk 0:02:36]} 13. bxc3 {[%clk 0:02:49]}  Na5 {[%clk 0:02:32]} 14. Bf4 {[%clk 0:02:39]}  e6 {[%clk 0:02:24]} 15. Bg5 {[%clk 0:02:31]}  Qc7 {[%clk 0:02:24]} 16. Rc1 {[%clk 0:02:29]}  Re8 {[%clk 0:02:10]} 17. Qd2 {[%clk 0:02:26]}  Bd7 {[%clk 0:02:02]} 18. Bf6 {[%clk 0:02:10]}  Bf8 {[%clk 0:01:59]} 19. h4 {[%clk 0:02:08]}  h5 {[%clk 0:01:55]} 20. g4 {[%clk 0:02:03]}  hxg4 {[%clk 0:01:52]} 21. h5 {[%clk 0:01:49]}  gxf3 {[%clk 0:01:17]} 22. hxg6 {[%clk 0:01:31]}  fxg6 {[%clk 0:01:15]} 23. Qg5 {[%clk 0:01:25]}  Bc6 {[%clk 0:01:10]} 24. Bd3 {[%clk 0:01:17]}  Bg7 {[%clk 0:01:09]} 25. Qxg6 {[%clk 0:00:56]}  Qf7 {[%clk 0:00:40]} 26. Qg5 {[%clk 0:00:37]}  Kf8 {[%clk 0:00:36]} 27. Bg6 {[%clk 0:00:36]}  Qg8 {[%clk 0:00:36]} 28. Re3 {[%clk 0:00:35]}  Qh8 {[%clk 0:00:17]} 29. Rxf3 {[%clk 0:00:33]}  Qh6 {[%clk 0:00:17]} 30. Bxg7+ {[%clk 0:00:32]}  Kxg7 {[%clk 0:00:18]} 31. Rf7+ {[%clk 0:00:32]} 1-0


[Site "https://www.chess.com"]

[Event "Titled Tuesday Blitz June 15 2021"]
[White "Libiszewski, Fabien"]
[Black "Danielian, Vardan"]
[WhiteFideId "616834"]
[BlackFideId "13301594"]
[WhiteElo "2440"]
[BlackElo "2526"]
[Result "1-0"]
[Round "02"]
[TimeControl "180+1"]
[Date "2021.06.15"]
[WhiteClock "0:00:11"]
[BlackClock "0:00:16"]

1. e4 {[%clk 0:03:00]}  c5 {[%clk 0:03:00]} 2. Nc3 {[%clk 0:03:00]}  d6 {[%clk 0:02:55]} 3. d4 {[%clk 0:02:59]}  cxd4 {[%clk 0:02:53]} 4. Qxd4 {[%clk 0:03:00]}  a6 {[%clk 0:02:50]} 5. b3 {[%clk 0:02:59]}  e5 {[%clk 0:02:48]} 6. Qd2 {[%clk 0:02:59]}  Nf6 {[%clk 0:02:48]} 7. Bb2 {[%clk 0:02:54]}  Be7 {[%clk 0:02:48]} 8. O-O-O {[%clk 0:02:51]}  O-O {[%clk 0:02:47]} 9. Kb1 {[%clk 0:02:51]}  Nbd7 {[%clk 0:02:38]} 10. f3 {[%clk 0:02:50]}  b5 {[%clk 0:02:38]} 11. g4 {[%clk 0:02:46]}  Bb7 {[%clk 0:02:35]} 12. Nge2 {[%clk 0:01:54]}  b4 {[%clk 0:02:27]} 13. Na4 {[%clk 0:01:54]}  Bc6 {[%clk 0:02:17]} 14. Ng3 {[%clk 0:01:45]}  Bxa4 {[%clk 0:01:56]} 15. bxa4 {[%clk 0:01:46]}  Nc5 {[%clk 0:01:54]} 16. g5 {[%clk 0:01:22]}  Nfd7 {[%clk 0:01:45]} 17. h4 {[%clk 0:01:18]}  Nxa4 {[%clk 0:01:42]} 18. Bc4 {[%clk 0:01:18]}  Nxb2 {[%clk 0:01:17]} 19. Kxb2 {[%clk 0:01:19]}  Nc5 {[%clk 0:01:15]} 20. Nf5 {[%clk 0:01:11]}  Na4+ {[%clk 0:01:01]} 21. Ka1 {[%clk 0:01:11]}  Nc3 {[%clk 0:01:01]} 22. Rdg1 {[%clk 0:01:11]}  Rc8 {[%clk 0:00:55]} 23. Bb3 {[%clk 0:00:52]}  d5 {[%clk 0:00:52]} 24. Bxd5 {[%clk 0:00:36]}  Bc5 {[%clk 0:00:44]} 25. Qd3 {[%clk 0:00:28]}  Bd4 {[%clk 0:00:39]} 26. Nxd4 {[%clk 0:00:28]}  Nxd5 {[%clk 0:00:37]} 27. Nf5 {[%clk 0:00:24]}  Nc3 {[%clk 0:00:32]} 28. Qxd8 {[%clk 0:00:22]}  Rcxd8 {[%clk 0:00:33]} 29. h5 {[%clk 0:00:21]}  Rd2 {[%clk 0:00:28]} 30. Kb2 {[%clk 0:00:21]}  Rfd8 {[%clk 0:00:23]} 31. g6 {[%clk 0:00:20]}  fxg6 {[%clk 0:00:24]} 32. hxg6 {[%clk 0:00:20]}  h6 {[%clk 0:00:24]} 33. Ne7+ {[%clk 0:00:15]}  Kf8 {[%clk 0:00:24]} 34. Nc6 {[%clk 0:00:15]}  Rc8 {[%clk 0:00:22]} 35. Nxb4 {[%clk 0:00:14]}  a5 {[%clk 0:00:21]} 36. Nd3 {[%clk 0:00:13]}  Ne2 {[%clk 0:00:19]} 37. Rc1 {[%clk 0:00:08]}  Nxc1 {[%clk 0:00:18]} 38. Rxc1 {[%clk 0:00:09]}  Rb8+ {[%clk 0:00:17]} 39. Kc3 {[%clk 0:00:09]}  Rg2 {[%clk 0:00:17]} 40. Nxe5 {[%clk 0:00:10]}  Rc8+ {[%clk 0:00:17]} 41. Kd3 {[%clk 0:00:10]}  Rd8+ {[%clk 0:00:17]} 42. Ke3 {[%clk 0:00:10]}  Rxg6 {[%clk 0:00:16]} 43. Nxg6+ {[%clk 0:00:10]}  Kf7 {[%clk 0:00:16]} 44. Ne5+ {[%clk 0:00:11]}  Ke6 {[%clk 0:00:16]} 45. Nd3 {[%clk 0:00:11]} 1-0


[Site "https://www.chess.com"]

[Event "Titled Tuesday Blitz June 15 2021"]
[White "Lodici, Lorenzo"]
[Black "Triapishko, Alexandr"]
[WhiteFideId "884189"]
[BlackFideId "14122286"]
[WhiteElo "2265"]
[BlackElo "2490"]
[Result "1-0"]
[Round "02"]
[TimeControl "180+1"]
[Date "2021.06.15"]
[WhiteClock "0:00:43"]
[BlackClock "0:00:01"]

1. d4 {[%clk 0:03:00]}  d6 {[%clk 0:01:50]} 2. c4 {[%clk 0:02:49]}  e5 {[%clk 0:01:49]} 3. Nc3 {[%clk 0:02:47]}  exd4 {[%clk 0:01:48]} 4. Qxd4 {[%clk 0:02:48]}  Nc6 {[%clk 0:01:49]} 5. Qd2 {[%clk 0:02:47]}  g6 {[%clk 0:01:49]} 6. b3 {[%clk 0:02:45]}  Bg7 {[%clk 0:01:49]} 7. Bb2 {[%clk 0:02:45]}  Nf6 {[%clk 0:01:49]} 8. g3 {[%clk 0:02:45]}  O-O {[%clk 0:01:49]} 9. Bg2 {[%clk 0:02:46]}  a5 {[%clk 0:01:49]} 10. Nh3 {[%clk 0:02:41]}  a4 {[%clk 0:01:48]} 11. Nxa4 {[%clk 0:02:32]}  Bxh3 {[%clk 0:01:46]} 12. Bxh3 {[%clk 0:02:32]}  Ne4 {[%clk 0:01:47]} 13. Qc1 {[%clk 0:02:31]}  Nd4 {[%clk 0:01:14]} 14. Bg2 {[%clk 0:02:13]}  Re8 {[%clk 0:01:13]} 15. e3 {[%clk 0:02:11]}  Nxf2 {[%clk 0:00:42]} 16. Kxf2 {[%clk 0:01:58]}  Qf6+ {[%clk 0:00:42]} 17. Ke1 {[%clk 0:01:57]}  Rxa4 {[%clk 0:00:38]} 18. bxa4 {[%clk 0:01:53]}  Rxe3+ {[%clk 0:00:16]} 19. Qxe3 {[%clk 0:01:51]}  Nc2+ {[%clk 0:00:17]} 20. Kd2 {[%clk 0:01:44]}  Qxb2 {[%clk 0:00:16]} 21. Qe8+ {[%clk 0:01:25]}  Bf8 {[%clk 0:00:15]} 22. Rhb1 {[%clk 0:01:23]}  Qd4+ {[%clk 0:00:09]} 23. Kxc2 {[%clk 0:01:22]}  Qf2+ {[%clk 0:00:04]} 24. Kd3 {[%clk 0:01:20]}  Qxg2 {[%clk 0:00:03]} 25. Rf1 {[%clk 0:01:19]}  f5 {[%clk 0:00:02]} 26. Qe2 {[%clk 0:01:13]}  Qc6 {[%clk 0:00:01]} 27. g4 {[%clk 0:01:06]}  d5 {[%clk 0:00:02]} 28. Rac1 {[%clk 0:01:03]}  dxc4+ {[%clk 0:00:02]} 29. Rxc4 {[%clk 0:01:04]}  Qd5+ {[%clk 0:00:02]} 30. Kc2 {[%clk 0:01:04]}  Bd6 {[%clk 0:00:02]} 31. gxf5 {[%clk 0:01:04]}  gxf5 {[%clk 0:00:02]} 32. Rg1+ {[%clk 0:00:54]}  Kf7 {[%clk 0:00:02]} 33. Rd1 {[%clk 0:00:50]}  Qa5 {[%clk 0:00:01]} 34. Qh5+ {[%clk 0:00:49]}  Kf6 {[%clk 0:00:02]} 35. Qh6+ {[%clk 0:00:48]}  Kf7 {[%clk 0:00:02]} 36. Qxh7+ {[%clk 0:00:48]}  Kf6 {[%clk 0:00:03]} 37. Qh8+ {[%clk 0:00:48]}  Kf7 {[%clk 0:00:03]} 38. Rg1 {[%clk 0:00:45]}  Qd5 {[%clk 0:00:01]} 39. Rg7+ {[%clk 0:00:43]} 1-0


[Site "https://www.chess.com"]

[Event "Titled Tuesday Blitz June 15 2021"]
[White "Maksimenko, Viktor"]
[Black "Ponkratov, Pavel"]
[WhiteFideId "13710478"]
[BlackFideId "4157800"]
[WhiteElo "2269"]
[BlackElo "2636"]
[Result "0-1"]
[Round "02"]
[TimeControl "180+1"]
[Date "2021.06.15"]
[WhiteClock "0:02:12"]
[BlackClock "0:02:42"]

1. d4 {[%clk 0:03:00]}  Nf6 {[%clk 0:02:59]} 2. c4 {[%clk 0:03:01]}  e6 {[%clk 0:02:58]} 3. Nf3 {[%clk 0:03:01]}  c5 {[%clk 0:02:57]} 4. d5 {[%clk 0:02:59]}  b5 {[%clk 0:02:57]} 5. dxe6 {[%clk 0:02:55]}  fxe6 {[%clk 0:02:57]} 6. cxb5 {[%clk 0:02:56]}  a6 {[%clk 0:02:58]} 7. bxa6 {[%clk 0:02:54]}  d5 {[%clk 0:02:58]} 8. e3 {[%clk 0:02:53]}  Bd6 {[%clk 0:02:57]} 9. Be2 {[%clk 0:02:52]}  O-O {[%clk 0:02:57]} 10. O-O {[%clk 0:02:50]}  Nxa6 {[%clk 0:02:57]} 11. Nc3 {[%clk 0:02:50]}  Bb7 {[%clk 0:02:57]} 12. b3 {[%clk 0:02:45]}  e5 {[%clk 0:02:50]} 13. e4 {[%clk 0:02:20]}  d4 {[%clk 0:02:50]} 14. Bc4+ {[%clk 0:02:18]}  Kh8 {[%clk 0:02:49]} 15. Nd5 {[%clk 0:02:12]}  Nxe4 {[%clk 0:02:42]} 16. Re1 {[%clk 0:02:12]}  Bxd5 {[%clk 0:02:42]} 0-1


[Site "https://www.chess.com"]

[Event "Titled Tuesday Blitz June 15 2021"]
[White "Maly, Alexey"]
[Black "Golubev, Mikhail"]
[WhiteFideId "14103184"]
[BlackFideId "14100983"]
[WhiteElo "2285"]
[BlackElo "2374"]
[Result "1-0"]
[Round "02"]
[TimeControl "180+1"]
[Date "2021.06.15"]
[WhiteClock "0:00:58"]
[BlackClock "0:00:17"]

1. d4 {[%clk 0:03:00]}  Nf6 {[%clk 0:02:59]} 2. c4 {[%clk 0:03:00]}  g6 {[%clk 0:02:58]} 3. Nc3 {[%clk 0:03:00]}  Bg7 {[%clk 0:02:59]} 4. e4 {[%clk 0:03:00]}  d6 {[%clk 0:02:59]} 5. Be2 {[%clk 0:03:01]}  O-O {[%clk 0:02:59]} 6. Nf3 {[%clk 0:03:01]}  e5 {[%clk 0:02:59]} 7. O-O {[%clk 0:03:01]}  Nc6 {[%clk 0:02:58]} 8. d5 {[%clk 0:03:01]}  Ne7 {[%clk 0:02:58]} 9. Ne1 {[%clk 0:03:02]}  Ne8 {[%clk 0:02:58]} 10. Be3 {[%clk 0:03:02]}  f5 {[%clk 0:02:57]} 11. f3 {[%clk 0:03:02]}  f4 {[%clk 0:02:58]} 12. Bf2 {[%clk 0:03:02]}  g5 {[%clk 0:02:58]} 13. c5 {[%clk 0:03:03]}  Ng6 {[%clk 0:02:57]} 14. a4 {[%clk 0:03:03]}  h5 {[%clk 0:02:49]} 15. a5 {[%clk 0:03:03]}  Nf6 {[%clk 0:02:47]} 16. cxd6 {[%clk 0:03:03]}  cxd6 {[%clk 0:02:46]} 17. Nb5 {[%clk 0:03:03]}  a6 {[%clk 0:02:29]} 18. Bb6 {[%clk 0:03:03]}  Qe7 {[%clk 0:02:25]} 19. Nc7 {[%clk 0:03:03]}  Rb8 {[%clk 0:02:24]} 20. Rc1 {[%clk 0:03:00]}  Bd7 {[%clk 0:02:17]} 21. Ne6 {[%clk 0:02:58]}  Rfc8 {[%clk 0:02:09]} 22. Rxc8+ {[%clk 0:02:47]}  Rxc8 {[%clk 0:02:08]} 23. Nxg5 {[%clk 0:02:44]}  Ng4 {[%clk 0:01:57]} 24. fxg4 {[%clk 0:02:27]}  Qxg5 {[%clk 0:01:56]} 25. Nf3 {[%clk 0:02:19]}  Qxg4 {[%clk 0:01:48]} 26. Nxe5 {[%clk 0:02:13]}  Nxe5 {[%clk 0:01:40]} 27. Bxg4 {[%clk 0:02:13]}  Bxg4 {[%clk 0:01:40]} 28. Qd2 {[%clk 0:01:38]}  f3 {[%clk 0:01:40]} 29. Bd4 {[%clk 0:01:29]}  fxg2 {[%clk 0:00:55]} 30. Kxg2 {[%clk 0:01:25]}  Kh7 {[%clk 0:00:36]} 31. h3 {[%clk 0:01:13]}  Bd7 {[%clk 0:00:27]} 32. Bxe5 {[%clk 0:01:10]}  dxe5 {[%clk 0:00:25]} 33. Rf7 {[%clk 0:01:07]}  Be8 {[%clk 0:00:18]} 34. Rxg7+ {[%clk 0:01:02]}  Kxg7 {[%clk 0:00:18]} 35. Qg5+ {[%clk 0:01:02]}  Bg6 {[%clk 0:00:17]} 36. Qxe5+ {[%clk 0:01:00]}  Kh7 {[%clk 0:00:17]} 37. Qe7+ {[%clk 0:00:58]} 1-0


[Site "https://www.chess.com"]

[Event "Titled Tuesday Blitz June 15 2021"]
[White "Martinez Alcantara, Jose Eduardo"]
[Black "Macovei, Andrei"]
[WhiteFideId "3805662"]
[BlackFideId "13904680"]
[WhiteElo "2690"]
[BlackElo "2439"]
[Result "0-1"]
[Round "02"]
[TimeControl "180+1"]
[Date "2021.06.15"]
[WhiteClock "0:00:02"]
[BlackClock "0:00:17"]

1. e4 {[%clk 0:03:00]}  c6 {[%clk 0:02:57]} 2. Nf3 {[%clk 0:03:00]}  d5 {[%clk 0:02:58]} 3. d3 {[%clk 0:03:01]}  dxe4 {[%clk 0:02:44]} 4. dxe4 {[%clk 0:03:01]}  Qxd1+ {[%clk 0:02:45]} 5. Kxd1 {[%clk 0:03:02]}  g6 {[%clk 0:02:45]} 6. Nfd2 {[%clk 0:02:57]}  h5 {[%clk 0:02:40]} 7. f3 {[%clk 0:02:55]}  h4 {[%clk 0:02:40]} 8. c3 {[%clk 0:02:40]}  Bh6 {[%clk 0:02:23]} 9. Kc2 {[%clk 0:02:39]}  Nf6 {[%clk 0:02:19]} 10. Na3 {[%clk 0:02:33]}  Nh5 {[%clk 0:02:16]} 11. Nb3 {[%clk 0:02:27]}  Bxc1 {[%clk 0:02:09]} 12. Rxc1 {[%clk 0:02:27]}  Nf4 {[%clk 0:02:07]} 13. Kd2 {[%clk 0:02:06]}  Be6 {[%clk 0:01:56]} 14. Ke3 {[%clk 0:02:00]}  g5 {[%clk 0:01:56]} 15. Rg1 {[%clk 0:01:47]}  Nd7 {[%clk 0:01:26]} 16. g3 {[%clk 0:01:46]}  hxg3 {[%clk 0:01:25]} 17. hxg3 {[%clk 0:01:47]}  Ng6 {[%clk 0:01:25]} 18. Nd4 {[%clk 0:01:45]}  Ndf8 {[%clk 0:01:18]} 19. Bc4 {[%clk 0:01:25]}  Bxc4 {[%clk 0:01:07]} 20. Nxc4 {[%clk 0:01:25]}  O-O-O {[%clk 0:01:07]} 21. Rh1 {[%clk 0:01:23]}  Ne6 {[%clk 0:01:02]} 22. b4 {[%clk 0:00:55]}  Kc7 {[%clk 0:00:45]} 23. a4 {[%clk 0:00:53]}  Rxh1 {[%clk 0:00:38]} 24. Rxh1 {[%clk 0:00:52]}  Nxd4 {[%clk 0:00:37]} 25. cxd4 {[%clk 0:00:52]}  Rh8 {[%clk 0:00:38]} 26. Rxh8 {[%clk 0:00:48]}  Nxh8 {[%clk 0:00:39]} 27. f4 {[%clk 0:00:38]}  gxf4+ {[%clk 0:00:40]} 28. gxf4 {[%clk 0:00:30]}  f6 {[%clk 0:00:40]} 29. f5 {[%clk 0:00:29]}  Nf7 {[%clk 0:00:38]} 30. Kf4 {[%clk 0:00:26]}  b5 {[%clk 0:00:36]} 31. axb5 {[%clk 0:00:22]}  cxb5 {[%clk 0:00:37]} 32. Na3 {[%clk 0:00:22]}  Kb6 {[%clk 0:00:36]} 33. e5 {[%clk 0:00:19]}  a5 {[%clk 0:00:36]} 34. bxa5+ {[%clk 0:00:19]}  Kxa5 {[%clk 0:00:35]} 35. Ke4 {[%clk 0:00:20]}  Ka4 {[%clk 0:00:23]} 36. Nc2 {[%clk 0:00:18]}  b4 {[%clk 0:00:21]} 37. Nxb4 {[%clk 0:00:06]}  Kxb4 {[%clk 0:00:22]} 38. Kd5 {[%clk 0:00:07]}  Ng5 {[%clk 0:00:22]} 39. exf6 {[%clk 0:00:02]}  exf6 {[%clk 0:00:23]} 40. Kc6 {[%clk 0:00:03]}  Kc4 {[%clk 0:00:19]} 41. d5 {[%clk 0:00:03]}  Kd4 {[%clk 0:00:16]} 42. d6 {[%clk 0:00:03]}  Ke5 {[%clk 0:00:17]} 43. d7 {[%clk 0:00:02]}  Nf7 {[%clk 0:00:17]} 0-1


[Site "https://www.chess.com"]

[Event "Titled Tuesday Blitz June 15 2021"]
[White "Moskalenko, Alexander"]
[Black "Kavyev, Ruslan"]
[WhiteFideId "4155351"]
[BlackFideId "34110981"]
[WhiteElo "2495"]
[BlackElo "2172"]
[Result "1-0"]
[Round "02"]
[TimeControl "180+1"]
[Date "2021.06.15"]
[WhiteClock "0:02:08"]
[BlackClock "0:01:35"]

1. d4 {[%clk 0:03:00]}  Nf6 {[%clk 0:02:57]} 2. Bf4 {[%clk 0:03:01]}  c5 {[%clk 0:02:56]} 3. d5 {[%clk 0:02:58]}  Qb6 {[%clk 0:02:55]} 4. Nc3 {[%clk 0:02:59]}  Qxb2 {[%clk 0:02:49]} 5. Bd2 {[%clk 0:02:54]}  Qb6 {[%clk 0:02:46]} 6. e4 {[%clk 0:02:53]}  d6 {[%clk 0:02:43]} 7. f4 {[%clk 0:02:53]}  Bg4 {[%clk 0:02:37]} 8. Nf3 {[%clk 0:02:51]}  Nbd7 {[%clk 0:02:37]} 9. Rb1 {[%clk 0:02:49]}  Qc7 {[%clk 0:02:37]} 10. h3 {[%clk 0:02:47]}  Bxf3 {[%clk 0:02:36]} 11. Qxf3 {[%clk 0:02:48]}  a6 {[%clk 0:02:36]} 12. g4 {[%clk 0:02:47]}  h6 {[%clk 0:02:34]} 13. h4 {[%clk 0:02:36]}  g6 {[%clk 0:02:33]} 14. h5 {[%clk 0:02:16]}  g5 {[%clk 0:02:28]} 15. e5 {[%clk 0:02:12]}  dxe5 {[%clk 0:02:27]} 16. fxg5 {[%clk 0:02:12]}  hxg5 {[%clk 0:02:10]} 17. Bg2 {[%clk 0:02:11]}  e4 {[%clk 0:02:02]} 18. Nxe4 {[%clk 0:02:06]}  Nxe4 {[%clk 0:02:02]} 19. Qxe4 {[%clk 0:02:07]}  Qg3+ {[%clk 0:02:01]} 20. Kf1 {[%clk 0:02:07]}  Nf6 {[%clk 0:01:51]} 21. Qa4+ {[%clk 0:02:06]}  b5 {[%clk 0:01:50]} 22. Rxb5 {[%clk 0:02:07]}  axb5 {[%clk 0:01:34]} 23. Qxa8+ {[%clk 0:02:07]}  Kd7 {[%clk 0:01:35]} 24. Qc6+ {[%clk 0:02:08]}  Kd8 {[%clk 0:01:35]} 25. Ba5+ {[%clk 0:02:08]} 1-0


[Site "https://www.chess.com"]

[Event "Titled Tuesday Blitz June 15 2021"]
[White "Nasir, Zehn"]
[Black "Hess, Robert"]
[WhiteFideId "2613239"]
[BlackFideId "2022036"]
[WhiteElo "1993"]
[BlackElo "2557"]
[Result "0-1"]
[Round "02"]
[TimeControl "180+1"]
[Date "2021.06.15"]
[WhiteClock "0:00:03"]
[BlackClock "0:00:05"]

1. d4 {[%clk 0:03:00]}  g6 {[%clk 0:02:58]} 2. Bf4 {[%clk 0:03:00]}  Bg7 {[%clk 0:02:58]} 3. Nc3 {[%clk 0:02:59]}  d6 {[%clk 0:02:59]} 4. h4 {[%clk 0:02:57]}  Nf6 {[%clk 0:02:37]} 5. e4 {[%clk 0:02:56]}  Nc6 {[%clk 0:02:37]} 6. Nf3 {[%clk 0:02:41]}  Bg4 {[%clk 0:02:34]} 7. Qd2 {[%clk 0:02:38]}  O-O {[%clk 0:02:15]} 8. d5 {[%clk 0:02:36]}  Bxf3 {[%clk 0:02:06]} 9. gxf3 {[%clk 0:02:32]}  Ne5 {[%clk 0:01:57]} 10. Be2 {[%clk 0:02:32]}  c6 {[%clk 0:01:38]} 11. O-O-O {[%clk 0:02:12]}  cxd5 {[%clk 0:01:21]} 12. Nxd5 {[%clk 0:02:12]}  Nxd5 {[%clk 0:01:16]} 13. Qxd5 {[%clk 0:02:13]}  Qb6 {[%clk 0:01:08]} 14. Be3 {[%clk 0:02:01]}  Qc6 {[%clk 0:00:54]} 15. f4 {[%clk 0:01:46]}  Rfc8 {[%clk 0:00:50]} 16. Qxc6 {[%clk 0:01:41]}  Nxc6 {[%clk 0:00:51]} 17. c3 {[%clk 0:01:36]}  Rab8 {[%clk 0:00:44]} 18. h5 {[%clk 0:01:33]}  b5 {[%clk 0:00:40]} 19. hxg6 {[%clk 0:01:33]}  hxg6 {[%clk 0:00:39]} 20. a3 {[%clk 0:01:33]}  a5 {[%clk 0:00:37]} 21. f5 {[%clk 0:01:13]}  b4 {[%clk 0:00:22]} 22. axb4 {[%clk 0:01:12]}  axb4 {[%clk 0:00:22]} 23. fxg6 {[%clk 0:00:44]}  bxc3 {[%clk 0:00:22]} 24. gxf7+ {[%clk 0:00:44]}  Kxf7 {[%clk 0:00:18]} 25. Bc4+ {[%clk 0:00:39]}  Kf8 {[%clk 0:00:17]} 26. b3 {[%clk 0:00:31]}  Na5 {[%clk 0:00:15]} 27. Be6 {[%clk 0:00:27]}  Nxb3+ {[%clk 0:00:08]} 28. Kc2 {[%clk 0:00:27]}  Nc5 {[%clk 0:00:09]} 29. Bxc5 {[%clk 0:00:15]}  Rxc5 {[%clk 0:00:09]} 30. Rb1 {[%clk 0:00:14]}  Rb2+ {[%clk 0:00:08]} 31. Rxb2 {[%clk 0:00:10]}  cxb2+ {[%clk 0:00:09]} 32. Kb1 {[%clk 0:00:10]}  Re5 {[%clk 0:00:10]} 33. Bd5 {[%clk 0:00:09]}  e6 {[%clk 0:00:10]} 34. f4 {[%clk 0:00:07]}  exd5 {[%clk 0:00:03]} 35. fxe5 {[%clk 0:00:07]}  Bxe5 {[%clk 0:00:04]} 36. exd5 {[%clk 0:00:07]}  Ke7 {[%clk 0:00:04]} 37. Rh6 {[%clk 0:00:07]}  Kd7 {[%clk 0:00:04]} 38. Re6 {[%clk 0:00:07]}  Kc7 {[%clk 0:00:04]} 39. Rh6 {[%clk 0:00:04]}  Kb6 {[%clk 0:00:05]} 40. Rh3 {[%clk 0:00:03]}  Kc5 {[%clk 0:00:05]} 41. Rd3 {[%clk 0:00:03]}  Bd4 {[%clk 0:00:05]} 0-1


[Site "https://www.chess.com"]

[Event "Titled Tuesday Blitz June 15 2021"]
[White "Nesterov, Arseniy"]
[Black "Palchuk, Andrii"]
[WhiteFideId "24198455"]
[BlackFideId "14176688"]
[WhiteElo "2441"]
[BlackElo "2267"]
[Result "1-0"]
[Round "02"]
[TimeControl "180+1"]
[Date "2021.06.15"]
[WhiteClock "0:02:42"]
[BlackClock "0:02:54"]

1. d4 {[%clk 0:03:00]}  Nf6 {[%clk 0:02:59]} 2. c4 {[%clk 0:02:50]}  e6 {[%clk 0:02:58]} 3. Nf3 {[%clk 0:02:47]}  b6 {[%clk 0:02:59]} 4. g3 {[%clk 0:02:46]}  Ba6 {[%clk 0:02:59]} 5. Qc2 {[%clk 0:02:45]}  Bb7 {[%clk 0:02:56]} 6. Bg2 {[%clk 0:02:45]}  c5 {[%clk 0:02:56]} 7. dxc5 {[%clk 0:02:45]}  bxc5 {[%clk 0:02:55]} 8. O-O {[%clk 0:02:45]}  Be7 {[%clk 0:02:55]} 9. Bg5 {[%clk 0:02:43]}  O-O {[%clk 0:02:54]} 10. Bxf6 {[%clk 0:02:42]}  Bxf6 {[%clk 0:02:54]} 11. Ng5 {[%clk 0:02:42]} 1-0


[Site "https://www.chess.com"]

[Event "Titled Tuesday Blitz June 15 2021"]
[White "Pakleza, Zbigniew"]
[Black "Mhango, Banele"]
[WhiteFideId "1119290"]
[BlackFideId "14327040"]
[WhiteElo "2526"]
[BlackElo "2562"]
[Result "1-0"]
[Round "02"]
[TimeControl "180+1"]
[Date "2021.06.15"]
[WhiteClock "0:00:20"]
[BlackClock "0:00:08"]

1. d4 {[%clk 0:03:00]}  Nf6 {[%clk 0:02:58]} 2. Nf3 {[%clk 0:03:00]}  g6 {[%clk 0:02:58]} 3. Bf4 {[%clk 0:03:00]}  Bg7 {[%clk 0:02:59]} 4. e3 {[%clk 0:03:00]}  O-O {[%clk 0:02:59]} 5. Be2 {[%clk 0:03:00]}  d5 {[%clk 0:02:59]} 6. O-O {[%clk 0:02:54]}  c5 {[%clk 0:02:59]} 7. c3 {[%clk 0:02:55]}  Nfd7 {[%clk 0:02:59]} 8. Nbd2 {[%clk 0:02:52]}  Nc6 {[%clk 0:02:59]} 9. Qb3 {[%clk 0:02:40]}  Qb6 {[%clk 0:02:30]} 10. h3 {[%clk 0:02:05]}  Re8 {[%clk 0:02:15]} 11. Rfd1 {[%clk 0:02:02]}  e6 {[%clk 0:02:12]} 12. Bg3 {[%clk 0:01:57]}  Na5 {[%clk 0:01:58]} 13. Qc2 {[%clk 0:01:54]}  Nc6 {[%clk 0:01:54]} 14. Rab1 {[%clk 0:01:34]}  e5 {[%clk 0:01:36]} 15. dxe5 {[%clk 0:01:32]}  Ndxe5 {[%clk 0:01:37]} 16. Nxe5 {[%clk 0:01:32]}  Nxe5 {[%clk 0:01:37]} 17. Qb3 {[%clk 0:01:25]}  Bf5 {[%clk 0:01:30]} 18. Ra1 {[%clk 0:01:16]}  Nd3 {[%clk 0:01:06]} 19. Bxd3 {[%clk 0:00:46]}  Bxd3 {[%clk 0:01:07]} 20. Nf3 {[%clk 0:00:45]}  c4 {[%clk 0:00:38]} 21. Qxb6 {[%clk 0:00:40]}  axb6 {[%clk 0:00:39]} 22. a3 {[%clk 0:00:39]}  b5 {[%clk 0:00:37]} 23. Ne1 {[%clk 0:00:33]}  Be4 {[%clk 0:00:36]} 24. f3 {[%clk 0:00:28]}  Bf5 {[%clk 0:00:36]} 25. Kf2 {[%clk 0:00:29]}  Be6 {[%clk 0:00:36]} 26. Nc2 {[%clk 0:00:28]}  Rad8 {[%clk 0:00:31]} 27. Rd2 {[%clk 0:00:28]}  Bf8 {[%clk 0:00:24]} 28. Rad1 {[%clk 0:00:28]}  Bc5 {[%clk 0:00:25]} 29. Kf1 {[%clk 0:00:28]}  Bb6 {[%clk 0:00:19]} 30. Bf2 {[%clk 0:00:27]}  Kf8 {[%clk 0:00:18]} 31. Nb4 {[%clk 0:00:27]}  Bf5 {[%clk 0:00:13]} 32. e4 {[%clk 0:00:20]}  Bxf2 {[%clk 0:00:13]} 33. Kxf2 {[%clk 0:00:21]}  Be6 {[%clk 0:00:12]} 34. Nxd5 {[%clk 0:00:18]}  Bxd5 {[%clk 0:00:08]} 35. Rxd5 {[%clk 0:00:19]}  Rxd5 {[%clk 0:00:08]} 36. Rxd5 {[%clk 0:00:20]} 1-0


[Site "https://www.chess.com"]

[Event "Titled Tuesday Blitz June 15 2021"]
[White "Perske, Thore"]
[Black "Andreikin, Dmitry"]
[WhiteFideId "12902195"]
[BlackFideId "4158814"]
[WhiteElo "2315"]
[BlackElo "2782"]
[Result "0-1"]
[Round "02"]
[TimeControl "180+1"]
[Date "2021.06.15"]
[WhiteClock "0:02:16"]
[BlackClock "0:02:30"]

1. e4 {[%clk 0:02:55]}  c5 {[%clk 0:02:59]} 2. Nf3 {[%clk 0:02:54]}  e6 {[%clk 0:02:59]} 3. d4 {[%clk 0:02:53]}  cxd4 {[%clk 0:03:00]} 4. Nxd4 {[%clk 0:02:54]}  a6 {[%clk 0:03:00]} 5. c4 {[%clk 0:02:53]}  Nf6 {[%clk 0:03:00]} 6. Nc3 {[%clk 0:02:53]}  Bb4 {[%clk 0:03:00]} 7. Qd3 {[%clk 0:02:52]}  d5 {[%clk 0:02:59]} 8. exd5 {[%clk 0:02:47]}  exd5 {[%clk 0:02:59]} 9. a3 {[%clk 0:02:44]}  Bxc3+ {[%clk 0:02:54]} 10. Qxc3 {[%clk 0:02:43]}  O-O {[%clk 0:02:49]} 11. Be2 {[%clk 0:02:37]}  Ne4 {[%clk 0:02:48]} 12. Qc2 {[%clk 0:02:32]}  Nxf2 {[%clk 0:02:40]} 13. Kxf2 {[%clk 0:02:27]}  Qh4+ {[%clk 0:02:36]} 14. g3 {[%clk 0:02:27]}  Qxd4+ {[%clk 0:02:36]} 15. Be3 {[%clk 0:02:27]}  Qf6+ {[%clk 0:02:32]} 16. Kg2 {[%clk 0:02:27]}  Bf5 {[%clk 0:02:31]} 17. Qd2 {[%clk 0:02:16]}  Be4+ {[%clk 0:02:30]} 0-1


[Site "https://www.chess.com"]